[Event "Championnat d'Europe de Blitz"]
[Date "2024.12.09"]
[White "Lagarde, Maxime"]
[Black "Guliyev, Namig"]
[WhiteElo "2600"]
[BlackElo "2484"]
[Round "6.12"]
[Result "1-0"]
[TimeControl "180+2"]

1. c4 {[%emt 00:17:53] [%clk 00:03:03]} e5 {[%emt 00:00:03] [%clk 00:03:01]} 2.
g3 {[%emt 00:00:02] [%clk 00:03:03]} Nf6 {[%emt 00:00:02] [%clk 00:03:01]} 3.
Bg2 {[%emt 00:00:03] [%clk 00:03:02]} d5 {[%emt 00:00:01] [%clk 00:03:01]} 4.
cxd5 {[%emt 00:00:02] [%clk 00:03:03]} Nxd5 {[%emt 00:00:01] [%clk 00:03:02]} 5.
Nf3 {[%emt 00:00:02] [%clk 00:03:03]} Nc6 {[%emt 00:00:01] [%clk 00:03:02]} 6.
O-O {[%emt 00:00:02] [%clk 00:03:03]} Be7 {[%emt 00:00:04] [%clk 00:03:01]} 7.
Nc3 {[%emt 00:00:25] [%clk 00:02:40]} Nb6 {[%emt 00:00:03] [%clk 00:03:00]} 8.
d3 {[%emt 00:00:04] [%clk 00:02:38]} O-O {[%emt 00:00:06] [%clk 00:02:56]} 9. a3
{[%emt 00:00:02] [%clk 00:02:38]} Be6 {[%emt 00:00:11] [%clk 00:02:46]} 10. Be3
{[%emt 00:00:04] [%clk 00:02:37]} Nd5 {[%emt 00:00:42] [%clk 00:02:06]} 11. Nxd5
{[%emt 00:00:04] [%clk 00:02:35]} Bxd5 {[%emt 00:00:01] [%clk 00:02:07]} 12. b4
{[%emt 00:00:12] [%clk 00:02:25]} Re8 {[%emt 00:00:14] [%clk 00:01:55]} 13. Rc1
{[%emt 00:00:15] [%clk 00:02:13]} Bf8 {[%emt 00:00:03] [%clk 00:01:53]} 14. Qc2
{[%emt 00:00:11] [%clk 00:02:07]} a6 {[%emt 00:00:04] [%clk 00:01:47]} 15. Rfe1
{[%emt 00:00:17] [%clk 00:01:52]} Rc8 {[%emt 00:00:06] [%clk 00:01:44]} 16. Bc5
{[%emt 00:00:04] [%clk 00:01:49]} Bxf3 {[%emt 00:00:08] [%clk 00:01:38]} 17.
Bxf3 {[%emt 00:00:01] [%clk 00:01:50]} Nd4 {[%emt 00:00:57] [%clk 00:00:43]} 18.
Bxd4 {[%emt 00:00:04] [%clk 00:01:49]} Qxd4 {[%emt 00:00:03] [%clk 00:00:42]}
19. Bxb7 {[%emt 00:00:04] [%clk 00:01:47]} Rb8 {[%emt 00:00:01] [%clk 00:00:43]}
20. Bxa6 {[%emt 00:00:07] [%clk 00:01:41]} Qa7 {[%emt 00:00:09] [%clk 00:00:36]}
21. Bc4 {[%emt 00:00:15] [%clk 00:01:28]} Qxa3 {[%emt 00:00:04] [%clk 00:00:34]}
22. b5 {[%emt 00:00:04] [%clk 00:01:26]} Bd6 {[%emt 00:00:07] [%clk 00:00:28]}
23. Ra1 {[%emt 00:00:13] [%clk 00:01:16]} Qc5 {[%emt 00:00:02] [%clk 00:00:28]}
24. Rec1 {[%emt 00:00:01] [%clk 00:01:17]} Qd4 {[%emt 00:00:04] [%clk 00:00:26]}
25. e3 {[%emt 00:00:03] [%clk 00:01:16]} Qg4 {[%emt 00:00:03] [%clk 00:00:25]}
26. Ra6 {[%emt 00:00:30] [%clk 00:00:48]} g6 {[%emt 00:00:04] [%clk 00:00:23]}
27. Rc6 {[%emt 00:00:06] [%clk 00:00:44]} Qd7 {[%emt 00:00:13] [%clk 00:00:12]}
28. Qe2 {[%emt 00:00:04] [%clk 00:00:41]} Rb6 {[%emt 00:00:03] [%clk 00:00:12]}
29. Qf3 {[%emt 00:00:01] [%clk 00:00:42]} Rxc6 {[%emt 00:00:03] [%clk 00:00:11]}
30. bxc6 {[%emt 00:00:01] [%clk 00:00:42]} Qe7 {[%emt 00:00:02] [%clk 00:00:12]}
31. Rb1 {[%emt 00:00:04] [%clk 00:00:41]} Kg7 {[%emt 00:00:02] [%clk 00:00:11]}
32. Rb7 {[%emt 00:00:02] [%clk 00:00:41]} h5 {[%emt 00:00:03] [%clk 00:00:10]}
33. h4 {[%clk 00:00:42]} Ra8 {[%emt 00:00:02] [%clk 00:00:10]} 34. Kg2 {[%emt
00:00:01] [%clk 00:00:42]} Ra5 {[%emt 00:00:01] [%clk 00:00:11]} 35. Rb8 {[%emt
00:00:18] [%clk 00:00:27]} Ra3 {[%emt 00:00:01] [%clk 00:00:12]} 36. Qd5 {[%emt
00:00:04] [%clk 00:00:26]} Ra1 {[%emt 00:00:03] [%clk 00:00:10]} 37. Qb5 {[%emt
00:00:11] [%clk 00:00:17]} Qf6 {[%emt 00:00:05] [%clk 00:00:07]} 38. Qd5 {[%emt
00:00:07] [%clk 00:00:12]} Rc1 {[%emt 00:00:02] [%clk 00:00:08]} 39. Qf3 {[%emt
00:00:02] [%clk 00:00:11]} Qxf3+ {[%emt 00:00:05] [%clk 00:00:05]} 40. Kxf3
{[%clk 00:00:12]} Ra1 {[%emt 00:00:04] [%clk 00:00:03]} 41. Rd8 {[%emt 00:00:02]
[%clk 00:00:12]} f5 {[%emt 00:00:03] [%clk 00:00:00]} 42. Rxd6 {[%emt 00:00:06]
[%clk 00:00:12]} 1-0

[Site "Europe Echecs"]

[Event "Championnat d'Europe de Blitz"]
[Date "2024.12.09"]
[White "Alonso Rosell, Alvar"]
[Black "Grigoriants, Sergey"]
[WhiteElo "2532"]
[BlackElo "2542"]
[Round "6.13"]
[Result "1/2-1/2"]
[TimeControl "180+2"]

1. d4 {[%emt 00:00:02] [%clk 00:03:02]} Nf6 {[%emt 00:00:02] [%clk 00:03:03]} 2.
Nf3 {[%emt 00:00:01] [%clk 00:03:03]} d5 {[%emt 00:00:02] [%clk 00:03:02]} 3. e3
{[%emt 00:00:02] [%clk 00:03:04]} c6 {[%emt 00:00:15] [%clk 00:02:49]} 4. h3
{[%emt 00:00:02] [%clk 00:03:04]} Bf5 {[%emt 00:00:06] [%clk 00:02:46]} 5. Nh4
{[%emt 00:00:01] [%clk 00:03:04]} Be6 {[%emt 00:00:11] [%clk 00:02:37]} 6. Bd3
{[%emt 00:00:04] [%clk 00:03:02]} g6 {[%emt 00:00:03] [%clk 00:02:36]} 7. O-O
{[%emt 00:00:11] [%clk 00:02:53]} Bg7 {[%emt 00:00:01] [%clk 00:02:37]} 8. Nd2
{[%emt 00:00:12] [%clk 00:02:43]} O-O {[%emt 00:00:07] [%clk 00:02:32]} 9. c3
{[%emt 00:00:06] [%clk 00:02:38]} Qc7 {[%emt 00:00:15] [%clk 00:02:20]} 10. e4
{[%emt 00:00:18] [%clk 00:02:22]} dxe4 {[%emt 00:00:08] [%clk 00:02:14]} 11.
Nxe4 {[%emt 00:00:02] [%clk 00:02:22]} Nxe4 {[%emt 00:00:06] [%clk 00:02:10]}
12. Bxe4 {[%emt 00:00:01] [%clk 00:02:23]} Nd7 {[%clk 00:02:11]} 13. Re1 {[%emt
00:00:05] [%clk 00:02:19]} Rfe8 {[%emt 00:00:20] [%clk 00:01:54]} 14. Bc2 {[%emt
00:00:12] [%clk 00:02:09]} Bd5 {[%emt 00:00:17] [%clk 00:01:39]} 15. Nf3 {[%emt
00:00:15] [%clk 00:01:56]} e5 {[%emt 00:00:14] [%clk 00:01:27]} 16. Nxe5 {[%emt
00:00:05] [%clk 00:01:53]} Nxe5 {[%emt 00:00:03] [%clk 00:01:25]} 17. dxe5
{[%emt 00:00:02] [%clk 00:01:53]} Bxe5 {[%emt 00:00:11] [%clk 00:01:17]} 18. Be3
{[%emt 00:00:04] [%clk 00:01:51]} Bh2+ {[%emt 00:00:16] [%clk 00:01:02]} 19. Kh1
{[%emt 00:00:01] [%clk 00:01:52]} Bf4 {[%emt 00:00:04] [%clk 00:01:01]} 20. Qd2
{[%emt 00:00:19] [%clk 00:01:35]} Bxe3 {[%emt 00:00:05] [%clk 00:00:58]} 21.
Rxe3 {[%emt 00:00:02] [%clk 00:01:36]} Qb6 {[%emt 00:00:09] [%clk 00:00:50]} 22.
Rae1 {[%emt 00:00:10] [%clk 00:01:28]} Rxe3 {[%emt 00:00:06] [%clk 00:00:46]}
23. Rxe3 {[%emt 00:00:14] [%clk 00:01:16]} Qxb2 {[%emt 00:00:09] [%clk
00:00:40]} 24. h4 {[%emt 00:00:03] [%clk 00:01:14]} Qxa2 {[%emt 00:00:10] [%clk
00:00:32]} 25. h5 {[%emt 00:00:01] [%clk 00:01:15]} Qc4 {[%emt 00:00:02] [%clk
00:00:32]} 26. Kg1 {[%emt 00:00:03] [%clk 00:01:13]} Rf8 {[%emt 00:00:10] [%clk
00:00:25]} 27. Rg3 {[%emt 00:00:07] [%clk 00:01:08]} Qh4 {[%emt 00:00:11] [%clk
00:00:16]} 28. h6 {[%emt 00:00:09] [%clk 00:01:01]} Re8 {[%emt 00:00:06] [%clk
00:00:11]} 29. Re3 {[%emt 00:00:05] [%clk 00:00:59]} Kf8 {[%emt 00:00:07] [%clk
00:00:07]} 30. c4 {[%emt 00:00:03] [%clk 00:00:58]} Qxc4 {[%emt 00:00:02] [%clk
00:00:07]} 31. Rxe8+ {[%emt 00:00:01] [%clk 00:00:58]} Kxe8 {[%emt 00:00:02]
[%clk 00:00:08]} 32. Qe3+ {[%clk 00:00:59]} Kd7 {[%emt 00:00:02] [%clk
00:00:09]} 33. Bd1 {[%emt 00:00:05] [%clk 00:00:55]} Qe4 {[%emt 00:00:03] [%clk
00:00:08]} 34. Qh3+ {[%emt 00:00:05] [%clk 00:00:51]} f5 {[%emt 00:00:01] [%clk
00:00:10]} 35. Bf3 {[%emt 00:00:07] [%clk 00:00:47]} Qe1+ {[%emt 00:00:01] [%clk
00:00:10]} 36. Kh2 {[%emt 00:00:01] [%clk 00:00:48]} Qe5+ {[%emt 00:00:01] [%clk
00:00:11]} 37. Kg1 {[%emt 00:00:01] [%clk 00:00:49]} Qf4 {[%emt 00:00:04] [%clk
00:00:09]} 38. Bxd5 {[%emt 00:00:02] [%clk 00:00:48]} cxd5 {[%emt 00:00:02]
[%clk 00:00:10]} 39. g3 {[%emt 00:00:04] [%clk 00:00:46]} Qg5 {[%emt 00:00:04]
[%clk 00:00:08]} 40. Qf1 {[%emt 00:00:02] [%clk 00:00:46]} a6 {[%emt 00:00:05]
[%clk 00:00:06]} 41. Qb1 {[%clk 00:00:46]} Kc7 {[%emt 00:00:03] [%clk 00:00:05]}
42. Qc2+ {[%emt 00:00:04] [%clk 00:00:44]} Kb8 {[%emt 00:00:01] [%clk 00:00:06]}
43. Qc5 {[%emt 00:00:07] [%clk 00:00:39]} Qd8 {[%emt 00:00:04] [%clk 00:00:05]}
44. Qd4 {[%emt 00:00:03] [%clk 00:00:38]} b6 {[%emt 00:00:03] [%clk 00:00:04]}
45. Qg7 {[%clk 00:00:38]} Qc7 {[%emt 00:00:01] [%clk 00:00:05]} 46. Qg8+ {[%clk
00:00:39]} Ka7 {[%emt 00:00:02] [%clk 00:00:06]} 47. Qxd5 {[%emt 00:00:02] [%clk
00:00:39]} a5 {[%emt 00:00:01] [%clk 00:00:07]} 48. Kh2 {[%emt 00:00:04] [%clk
00:00:36]} Qe7 {[%emt 00:00:03] [%clk 00:00:06]} 49. Qd4 {[%emt 00:00:02] [%clk
00:00:37]} Ka6 {[%emt 00:00:02] [%clk 00:00:06]} 50. Qc4+ {[%emt 00:00:02] [%clk
00:00:37]} Kb7 {[%emt 00:00:01] [%clk 00:00:06]} 51. Qd4 {[%emt 00:00:01] [%clk
00:00:38]} Qc7 {[%emt 00:00:02] [%clk 00:00:07]} 52. Kh3 {[%emt 00:00:03] [%clk
00:00:36]} b5 {[%emt 00:00:03] [%clk 00:00:07]} 53. Qd5+ {[%emt 00:00:02] [%clk
00:00:35]} Ka6 {[%emt 00:00:01] [%clk 00:00:08]} 54. Qe6+ {[%emt 00:00:02] [%clk
00:00:36]} Qb6 {[%emt 00:00:02] [%clk 00:00:08]} 55. Qc8+ {[%emt 00:00:04] [%clk
00:00:34]} Qb7 {[%emt 00:00:01] [%clk 00:00:09]} 56. Qe6+ {[%clk 00:00:35]} Ka7
{[%clk 00:00:10]} 57. Qe3+ {[%emt 00:00:01] [%clk 00:00:36]} Ka6 {[%emt
00:00:05] [%clk 00:00:08]} 58. Qe6+ {[%clk 00:00:37]} Ka7 {[%emt 00:00:03] [%clk
00:00:08]} 59. Qe3+ {[%clk 00:00:38]} Ka6 {[%emt 00:00:05] [%clk 00:00:06]} 60.
Qe6+ {[%clk 00:00:38]} 1/2-1/2

[Site "Europe Echecs"]

[Event "Championnat d'Europe de Blitz"]
[Date "2024.12.09"]
[White "Mohr, Georg"]
[Black "Pantsulaia, Levan"]
[WhiteElo "2385"]
[BlackElo "2522"]
[Round "6.14"]
[Result "1/2-1/2"]
[TimeControl "180+2"]

1. d4 {[%emt 00:00:01] [%clk 00:03:03]} c5 {[%emt 00:00:01] [%clk 00:03:03]} 2.
e3 {[%emt 00:00:02] [%clk 00:03:03]} Nf6 {[%emt 00:00:04] [%clk 00:03:01]} 3.
Nf3 {[%emt 00:00:01] [%clk 00:03:03]} b6 {[%emt 00:00:08] [%clk 00:02:55]} 4.
Bd3 {[%emt 00:00:04] [%clk 00:03:01]} Bb7 {[%emt 00:00:01] [%clk 00:02:56]} 5.
Nbd2 {[%emt 00:00:01] [%clk 00:03:02]} cxd4 {[%emt 00:00:11] [%clk 00:02:47]} 6.
exd4 {[%clk 00:03:03]} e6 {[%emt 00:00:02] [%clk 00:02:48]} 7. O-O {[%emt
00:00:03] [%clk 00:03:01]} Be7 {[%emt 00:00:01] [%clk 00:02:49]} 8. Qe2 {[%emt
00:00:09] [%clk 00:02:54]} O-O {[%emt 00:00:02] [%clk 00:02:49]} 9. c3 {[%emt
00:00:05] [%clk 00:02:52]} d6 {[%clk 00:02:50]} 10. Ne4 {[%emt 00:00:11] [%clk
00:02:43]} Nbd7 {[%emt 00:00:01] [%clk 00:02:50]} 11. Bf4 {[%emt 00:00:08] [%clk
00:02:36]} Nxe4 {[%emt 00:00:04] [%clk 00:02:49]} 12. Bxe4 {[%clk 00:02:37]}
Bxe4 {[%emt 00:00:01] [%clk 00:02:50]} 13. Qxe4 {[%clk 00:02:38]} Nf6 {[%emt
00:00:01] [%clk 00:02:50]} 14. Qe2 {[%emt 00:00:03] [%clk 00:02:39]} Qd7 {[%emt
00:00:06] [%clk 00:02:46]} 15. a4 {[%emt 00:00:02] [%clk 00:02:39]} a6 {[%emt
00:00:08] [%clk 00:02:39]} 16. Nd2 {[%emt 00:00:06] [%clk 00:02:35]} b5 {[%emt
00:00:09] [%clk 00:02:33]} 17. axb5 {[%emt 00:00:20] [%clk 00:02:17]} Qxb5
{[%emt 00:00:02] [%clk 00:02:33]} 18. Qxb5 {[%emt 00:00:14] [%clk 00:02:04]}
axb5 {[%clk 00:02:34]} 19. Nb3 {[%emt 00:00:02] [%clk 00:02:04]} Nd5 {[%emt
00:00:04] [%clk 00:02:32]} 20. Bd2 {[%emt 00:00:02] [%clk 00:02:04]} Nb6 {[%emt
00:00:02] [%clk 00:02:32]} 21. Rxa8 {[%emt 00:00:02] [%clk 00:02:04]} Rxa8
{[%emt 00:00:02] [%clk 00:02:33]} 22. Ra1 {[%emt 00:00:01] [%clk 00:02:05]} Ra4
{[%emt 00:00:36] [%clk 00:01:59]} 23. Rxa4 {[%emt 00:00:07] [%clk 00:01:59]}
bxa4 {[%emt 00:00:11] [%clk 00:01:50]} 24. Na1 {[%emt 00:00:09] [%clk 00:01:52]}
Nc4 {[%emt 00:00:09] [%clk 00:01:43]} 25. Bc1 {[%clk 00:01:53]} d5 {[%emt
00:00:05] [%clk 00:01:40]} 26. Kf1 {[%emt 00:00:01] [%clk 00:01:54]} h6 {[%emt
00:00:05] [%clk 00:01:38]} 27. Ke2 {[%clk 00:01:55]} Bg5 {[%emt 00:00:03] [%clk
00:01:37]} 28. f4 {[%emt 00:00:01] [%clk 00:01:56]} Be7 {[%emt 00:00:02] [%clk
00:01:37]} 29. Kd3 {[%emt 00:00:03] [%clk 00:01:55]} g5 {[%emt 00:00:07] [%clk
00:01:32]} 30. b3 {[%emt 00:00:23] [%clk 00:01:34]} axb3 {[%emt 00:00:03] [%clk
00:01:31]} 31. Nxb3 {[%clk 00:01:36]} g4 {[%emt 00:00:07] [%clk 00:01:27]} 32.
Nd2 {[%emt 00:00:05] [%clk 00:01:32]} Nxd2 {[%emt 00:00:51] [%clk 00:00:38]} 33.
Bxd2 {[%emt 00:00:02] [%clk 00:01:32]} Kg7 {[%clk 00:00:39]} 34. h3 {[%emt
00:00:49] [%clk 00:00:45]} h5 {[%emt 00:00:11] [%clk 00:00:31]} 35. hxg4 {[%emt
00:00:01] [%clk 00:00:46]} hxg4 {[%clk 00:00:32]} 36. g3 {[%emt 00:00:06] [%clk
00:00:42]} Kg6 {[%emt 00:00:02] [%clk 00:00:32]} 37. c4 {[%emt 00:00:05] [%clk
00:00:39]} dxc4+ {[%emt 00:00:02] [%clk 00:00:32]} 38. Kxc4 {[%clk 00:00:39]}
Kf5 {[%emt 00:00:02] [%clk 00:00:33]} 39. Kd3 {[%clk 00:00:41]} Bd6 {[%emt
00:00:13] [%clk 00:00:22]} 40. Be1 {[%emt 00:00:04] [%clk 00:00:39]} Bxf4 {[%emt
00:00:14] [%clk 00:00:11]} 41. gxf4 {[%clk 00:00:40]} Kxf4 {[%clk 00:00:12]} 42.
Ke2 {[%emt 00:00:04] [%clk 00:00:39]} g3 {[%clk 00:00:13]} 43. Bd2+ {[%emt
00:00:07] [%clk 00:00:33]} Ke4 {[%emt 00:00:01] [%clk 00:00:14]} 44. Kf1 {[%emt
00:00:04] [%clk 00:00:31]} Kf3 {[%emt 00:00:06] [%clk 00:00:11]} 45. Bh6 {[%emt
00:00:17] [%clk 00:00:16]} f5 46. Bg5 {[%clk 00:00:17]} f4 {[%emt 00:00:02]
[%clk 00:00:13]} 47. Bh6 {[%emt 00:00:01] [%clk 00:00:18]} Kg4 {[%emt 00:00:03]
[%clk 00:00:11]} 48. Bg7 {[%emt 00:00:07] [%clk 00:00:14]} f3 {[%emt 00:00:06]
[%clk 00:00:07]} 49. Be5 {[%clk 00:00:15]} Kh3 {[%emt 00:00:01] [%clk 00:00:09]}
50. Kg1 {[%emt 00:00:06] [%clk 00:00:11]} Kh4 {[%emt 00:00:05] [%clk 00:00:06]}
51. Kf1 {[%emt 00:00:01] [%clk 00:00:12]} Kg4 {[%clk 00:00:07]} 52. Kg1 {[%emt
00:00:01] [%clk 00:00:13]} Kh3 {[%clk 00:00:08]} 53. Kf1 {[%emt 00:00:02] [%clk
00:00:13]} Kh2 {[%emt 00:00:01] [%clk 00:00:09]} 54. Bd6 {[%clk 00:00:15]} Kh3
{[%emt 00:00:06] [%clk 00:00:05]} 55. Kg1 {[%clk 00:00:16]} Kg4 {[%emt 00:00:02]
[%clk 00:00:05]} 56. Kf1 {[%clk 00:00:18]} 1/2-1/2

[Site "Europe Echecs"]

[Event "Championnat d'Europe de Blitz"]
[Date "2024.12.09"]
[White "Krallis, Christos"]
[Black "Dardha, Daniel"]
[WhiteElo "2383"]
[BlackElo "2639"]
[Round "6.15"]
[Result "0-1"]
[TimeControl "180+2"]

1. e4 {[%clk 00:03:02]} c5 {[%emt 00:00:02] [%clk 00:03:03]} 2. Nf3 {[%emt
00:00:02] [%clk 00:03:02]} Nc6 {[%clk 00:03:04]} 3. Bb5 {[%emt 00:00:07] [%clk
00:02:58]} e6 {[%emt 00:00:01] [%clk 00:03:04]} 4. O-O {[%emt 00:00:05] [%clk
00:02:54]} Nge7 {[%emt 00:00:03] [%clk 00:03:04]} 5. Re1 {[%emt 00:00:04] [%clk
00:02:51]} a6 {[%emt 00:00:02] [%clk 00:03:05]} 6. Bf1 {[%emt 00:00:02] [%clk
00:02:50]} d5 {[%emt 00:00:02] [%clk 00:03:05]} 7. exd5 {[%emt 00:00:02] [%clk
00:02:50]} Nxd5 {[%emt 00:00:02] [%clk 00:03:05]} 8. d4 {[%emt 00:00:02] [%clk
00:02:50]} Nf6 {[%emt 00:00:02] [%clk 00:03:05]} 9. Be3 {[%emt 00:00:32] [%clk
00:02:21]} cxd4 {[%emt 00:00:02] [%clk 00:03:05]} 10. Nxd4 {[%emt 00:00:03]
[%clk 00:02:20]} Bd7 {[%emt 00:00:01] [%clk 00:03:06]} 11. c4 {[%emt 00:00:36]
[%clk 00:01:46]} h5 {[%emt 00:00:02] [%clk 00:03:05]} 12. h3 {[%emt 00:00:05]
[%clk 00:01:43]} Nxd4 {[%emt 00:00:02] [%clk 00:03:05]} 13. Qxd4 {[%emt
00:00:06] [%clk 00:01:39]} Bc6 {[%emt 00:00:04] [%clk 00:03:03]} 14. Nc3 {[%emt
00:00:03] [%clk 00:01:38]} Qxd4 {[%emt 00:00:08] [%clk 00:02:58]} 15. Bxd4
{[%emt 00:00:01] [%clk 00:01:39]} Bd6 {[%emt 00:00:10] [%clk 00:02:49]} 16. Rad1
{[%emt 00:00:07] [%clk 00:01:35]} O-O-O {[%emt 00:00:04] [%clk 00:02:47]} 17. b3
{[%emt 00:00:08] [%clk 00:01:28]} Bb4 {[%emt 00:00:08] [%clk 00:02:41]} 18. Be5
{[%emt 00:00:18] [%clk 00:01:13]} Nd7 {[%emt 00:00:20] [%clk 00:02:23]} 19. Bxg7
{[%emt 00:00:17] [%clk 00:00:58]} Rhg8 {[%emt 00:00:02] [%clk 00:02:24]} 20. a3
{[%emt 00:00:10] [%clk 00:00:49]} Bxa3 {[%emt 00:00:31] [%clk 00:01:54]} 21. Bd4
{[%emt 00:00:02] [%clk 00:00:49]} Bb4 {[%emt 00:00:01] [%clk 00:01:55]} 22. Rc1
{[%emt 00:00:16] [%clk 00:00:35]} Nc5 {[%emt 00:00:16] [%clk 00:01:40]} 23. Bxc5
{[%emt 00:00:09] [%clk 00:00:29]} Bxc5 {[%emt 00:00:01] [%clk 00:01:41]} 24. Ne4
{[%emt 00:00:10] [%clk 00:00:21]} Bd4 {[%emt 00:00:02] [%clk 00:01:41]} 25. c5
{[%emt 00:00:03] [%clk 00:00:20]} Kc7 {[%emt 00:00:04] [%clk 00:01:39]} 26. Nd6
{[%emt 00:00:04] [%clk 00:00:18]} Rg7 {[%emt 00:00:08] [%clk 00:01:33]} 27. Red1
{[%emt 00:00:08] [%clk 00:00:13]} Bb2 {[%emt 00:00:30] [%clk 00:01:04]} 28. Rc2
{[%emt 00:00:03] [%clk 00:00:12]} Be5 {[%emt 00:00:04] [%clk 00:01:02]} 29. Rcd2
{[%emt 00:00:08] [%clk 00:00:05]} Rdg8 {[%emt 00:00:03] [%clk 00:01:01]} 30. g3
{[%emt 00:00:01] [%clk 00:00:07]} h4 {[%emt 00:00:06] [%clk 00:00:57]} 31. Bg2
{[%emt 00:00:06] [%clk 00:00:03]} hxg3 {[%emt 00:00:20] [%clk 00:00:38]} 32.
Bxc6 {[%emt 00:00:03] [%clk 00:00:03]} Kxc6 {[%emt 00:00:07] [%clk 00:00:34]}
33. f3 {[%clk 00:00:04]} g2 {[%emt 00:00:02] [%clk 00:00:34]} 34. Nc4 {[%emt
00:00:02] [%clk 00:00:04]} Bh2+ {[%emt 00:00:05] [%clk 00:00:31]} 35. Kxh2
{[%emt 00:00:01] [%clk 00:00:05]} g1=Q+ {[%emt 00:00:03] [%clk 00:00:31]} 36.
Rxg1 {[%clk 00:00:06]} Rxg1 {[%emt 00:00:01] [%clk 00:00:32]} 37. b4 {[%clk
00:00:07]} f6 {[%emt 00:00:12] [%clk 00:00:22]} 38. Na5+ {[%emt 00:00:02] [%clk
00:00:07]} Kb5 {[%emt 00:00:01] [%clk 00:00:23]} 39. Nxb7 {[%emt 00:00:02] [%clk
00:00:07]} Rf1 {[%emt 00:00:07] [%clk 00:00:19]} 40. Nd6+ {[%emt 00:00:02] [%clk
00:00:07]} Kxb4 {[%emt 00:00:01] [%clk 00:00:19]} 41. c6 {[%emt 00:00:03] [%clk
00:00:06]} Rc1 {[%emt 00:00:01] [%clk 00:00:20]} 42. Ne4 {[%emt 00:00:05] [%clk
00:00:04]} Rxc6 {[%emt 00:00:05] [%clk 00:00:16]} 43. Nxf6 {[%clk 00:00:05]}
Rgc8 {[%emt 00:00:02] [%clk 00:00:16]} 44. Kg3 {[%emt 00:00:03] [%clk 00:00:04]}
a5 {[%emt 00:00:05] [%clk 00:00:13]} 45. Ne4 {[%emt 00:00:01] [%clk 00:00:04]}
e5 {[%emt 00:00:02] [%clk 00:00:14]} 46. Rd5 {[%emt 00:00:01] [%clk 00:00:05]}
Rg8+ {[%emt 00:00:01] [%clk 00:00:15]} 47. Kf2 {[%emt 00:00:01] [%clk 00:00:06]}
a4 {[%emt 00:00:03] [%clk 00:00:15]} 48. Rd7 {[%emt 00:00:01] [%clk 00:00:06]}
a3 {[%emt 00:00:06] [%clk 00:00:11]} 49. Rb7+ {[%clk 00:00:07]} Ka5 {[%emt
00:00:01] [%clk 00:00:12]} 50. Ra7+ {[%emt 00:00:04] [%clk 00:00:05]} Ra6 {[%emt
00:00:01] [%clk 00:00:13]} 51. Re7 {[%emt 00:00:01] [%clk 00:00:05]} a2 {[%emt
00:00:02] [%clk 00:00:14]} 0-1

[Site "Europe Echecs"]